bitfinex/quotes_ETHUSD_20250904
["timestamp","ask_amount","ask_price","bid_price","bid_amount"]
[1756968729469,1.2226,4367.7,4367.6,8.25745447]
[1756968732656,0.3082,4367.7,4367.6,8.25745447]
[1756968733586,0.3092,4367.7,4367.6,8.25745447]
[1756968733988,0.001,4367.7,4367.6,8.55665447]
[1756968734289,0.001,4367.7,4367.6,9.02735447]
[1756968734290,0.1154,4367.7,4367.6,9.02735447]
[1756968734490,0.1154,4367.7,4367.6,9.02495447]
[1756968735191,0.1154,4367.7,4367.6,8.72575447]
[1756968735396,0.8909,4367.7,4367.6,8.72575447]
[1756968735563,1.385,4367.7,4367.6,8.72575447]
[1756968735973,0.4236,4367.7,4367.6,8.72575447]
[1756968736173,0.1154,4367.7,4367.6,8.72575447]
[1756968736494,0.001,4367.7,4367.6,12.91098542]
[1756968736790,0.001,4367.7,4367.6,22.47645513]
[1756968736960,0.001,4367.7,4367.6,13.49608542]
[1756968738679,0.3092,4367.7,4367.6,12.23168542]
[1756968738892,0.3092,4367.7,4367.6,11.01534142]
[1756968739201,0.001,4367.7,4367.6,11.31454142]
[1756968739870,0.001,4367.7,4367.6,4.89475447]
[1756968740193,0.001,4367.7,4367.6,8.72475447]
[1756968740194,0.3092,4367.7,4367.6,8.72475447]
[1756968741398,0.7765,4367.7,4367.6,4.89454535]
[1756968741703,0.7765,4367.7,4367.6,8.25624535]
[1756968741704,1.385,4367.7,4367.6,8.25624535]
[1756968744371,1.385,4367.7,4367.6,4.42624535]
[1756968744607,1.385,4367.7,4367.6,8.25624535]
[1756968744896,6.67453453,4367.7,4367.6,8.25624535]
[1756968745103,6.67453453,4367.7,4367.6,4.42624535]
[1756968745309,4.385,4367.7,4367.6,8.25624535]
[1756968745981,6.67453453,4367.7,4367.6,8.25624535]
[1756968746299,4.385,4367.7,4367.6,8.25624535]
[1756968746670,3.4236,4367.7,4367.6,8.25624535]
[1756968746871,4.385,4367.7,4367.6,8.25624535]
[1756968747867,3.9177,4367.7,4367.6,8.25624535]
[1756968748072,3.1154,4367.7,4367.6,11.3395323]
[1756968748305,0.1154,4367.7,4367.6,10.20889633]
[1756968749569,0.1154,4367.7,4367.6,13.74873499]
[1756968749800,0.1154,4367.7,4367.6,13.74871563]
[1756968750776,0.1154,4367.7,4367.6,11.45912868]
[1756968751077,0.1154,4367.7,4367.6,13.25821563]
[1756968751275,0.1154,4367.7,4367.6,13.54088962]
[1756968753308,0.1154,4367.7,4367.6,13.04358962]
[1756968753507,0.1154,4367.7,4367.6,13.54088962]
[1756968753809,0.001,4367.7,4367.6,13.54088962]
[1756968754706,0.001,4367.7,4367.6,13.54378962]
[1756968755005,0.001,4367.7,4367.6,13.65818962]
[1756968757007,0.2884,4367.7,4367.6,12.27368962]
[1756968757223,0.2884,4367.7,4367.6,4.90385096]
[1756968757395,1.1984,4367.7,4367.6,8.73385096]
[1756968758135,1.3128,4367.7,4367.6,8.73385096]
[1756968758618,1.3128,4367.7,4367.6,4.90385096]
[1756968758784,1.3128,4367.7,4367.6,8.04559998]
[1756968759186,1.3128,4367.7,4367.6,0.004]
[1756968759415,3.60233453,4367.7,4367.6,3.834]
[1756968759590,1.3128,4367.7,4367.6,3.834]
[1756968759778,3.60233453,4367.7,4367.6,3.834]
[1756968760110,3.60233453,4367.7,4367.6,0.004]
[1756968760309,1.3128,4367.7,4367.6,0.004]
[1756968761087,0.8682,4367.7,4367.6,0.004]
[1756968761517,0.4028,4367.7,4367.6,0.004]
[1756968761908,1.3128,4367.7,4367.6,0.004]
[1756968762419,0.4028,4367.7,4367.6,0.004]
[1756968762925,1.3128,4367.7,4367.6,0.004]
[1756968764122,3.60233453,4367.7,4367.6,3.833]
[1756968764425,1.3128,4367.7,4367.6,3.833]
[1756968765116,3.60233453,4367.7,4367.6,3.833]
[1756968765498,6.60233453,4367.7,4367.6,3.833]
[1756968765701,6.60233453,4367.7,4367.6,0.004]
[1756968766724,4.3128,4367.7,4367.6,0.004]
[1756968767028,3.8474,4367.7,4367.6,0.004]
[1756968767229,4.3128,4367.7,4367.6,0.004]
[1756968767725,6.60233453,4367.7,4367.6,0.004]
[1756968768100,4.3128,4367.7,4367.6,0.004]
[1756968768303,6.60233453,4367.7,4367.6,0.004]
[1756968769022,3.4028,4367.7,4367.6,0.004]
[1756968769217,3.8474,4367.7,4367.6,0.004]
[1756968769394,3.4028,4367.7,4367.6,0.004]
[1756968770019,3.1154,4367.7,4367.6,0.004]
[1756968770217,3.1154,4367.7,4367.6,0.3129]
[1756968770425,3.4028,4367.7,4367.6,0.004]
[1756968770610,6.60233453,4367.7,4367.6,0.004]
[1756968773802,6.15773453,4367.7,4367.6,0.004]
[1756968774104,6.60233453,4367.7,4367.6,0.004]
[1756968778424,6.13693453,4367.7,4367.6,0.004]
[1756968779235,6.60233453,4367.7,4367.6,0.004]
[1756968780440,5.69233453,4367.7,4367.6,0.004]
[1756968781435,3.4028,4367.7,4367.6,0.004]
[1756968782033,5.69233453,4367.7,4367.6,0.004]
[1756968782640,3.4028,4367.7,4367.6,0.004]
[1756968783942,3.1154,4367.7,4367.6,0.2984]
[1756968784827,3.1154,4367.7,4367.6,0.004]
[1756968785838,5.71833453,4367.7,4367.6,0.004]
[1756968786733,3.4288,4367.7,4367.6,0.004]
[1756968786909,3.1154,4367.7,4367.6,1.2374]
[1756968787106,3.1154,4367.7,4367.6,5.0664]
[1756968787410,3.1154,4367.7,4367.6,9.27799998]
[1756968787937,3.4288,4367.7,4367.6,8.04459998]
[1756968788310,3.1154,4367.7,4367.6,8.04459998]
[1756968789811,6.18613453,4367.7,4367.6,4.21559998]
[1756968790012,7.11084182,4367.7,4367.6,4.21559998]
[1756968790936,10.93984182,4367.7,4367.6,4.21559998]
[1756968793539,10.03814182,4367.7,4367.6,0.004]
[1756968793744,6.20914182,4367.7,4367.6,0.004]
[1756968795137,3.91960729,4367.7,4367.6,0.004]
[1756968795311,3.60620729,4367.7,4367.6,0.004]
[1756968795510,5.89574182,4367.7,4367.6,0.004]
[1756968796544,6.20914182,4367.7,4367.6,0.004]
[1756968797008,3.60620729,4367.7,4367.6,0.2984]
[1756968797210,5.89574182,4367.7,4367.6,0.51325251]
[1756968797441,5.89574182,4367.7,4367.6,0.21885251]
[1756968797641,6.67694182,4367.7,4367.6,0.21885251]
[1756968797816,7.11084182,4367.7,4367.6,0.21885251]
[1756968801962,5.89574182,4367.7,4367.6,0.21885251]
[1756968802165,6.20914182,4367.7,4367.6,0.21885251]
[1756968802468,7.11084182,4367.7,4367.6,0.21885251]
[1756968805437,7.90284182,4367.7,4367.6,0.21885251]
[1756968805765,7.90284182,4367.7,4367.6,0.004]
[1756968808566,7.90284182,4367.7,4367.6,0.2984]
[1756968808567,5.89574182,4367.7,4367.6,0.2984]
[1756968808768,9.72374182,4367.7,4367.6,0.004]
[1756968808978,10.03714182,4367.7,4367.6,0.004]
[1756968810768,9.72374182,4367.7,4367.6,0.3174]
[1756968811287,9.72247751,4367.7,4367.6,0.3174]
[1756968811446,9.72247751,4367.7,4367.6,0.53181245]
[1756968812167,0.60494298,4367.7,4367.6,0.53181245]
[1756968812363,3.9434,4367.7,4367.6,1.46741245]
[1756968812545,6.9434,4367.7,4367.6,1.46741245]
[1756968812748,9.23293453,4367.7,4367.6,1.46741245]
[1756968813176,3.1154,4367.7,4367.6,1.46741245]
[1756968813364,6.9434,4367.7,4367.6,1.46741245]
[1756968815756,9.23293453,4367.7,4367.6,1.46741245]
[1756968816952,9.23293453,4367.7,4367.6,0.21841245]
[1756968817160,10.00768349,4367.7,4367.6,0.21841245]
[1756968817451,10.92368349,4367.7,4367.6,0.21841245]
[1756968817655,10.00768349,4367.7,4367.6,0.21841245]
[1756968819584,10.92368349,4367.7,4367.6,0.21841245]
[1756968822699,10.92368349,4367.7,4367.6,0.21852379]
[1756968824800,10.92368349,4367.7,4367.6,0.53192379]
[1756968824801,9.60728349,4367.7,4367.6,0.53192379]
[1756968824987,9.60728349,4367.7,4367.6,1.46752379]
[1756968825390,9.72168349,4367.7,4367.6,1.46752379]
[1756968826175,6.72168349,4367.7,4367.6,0.99802379]
[1756968826381,4.43214896,4367.7,4367.6,1.46752379]
[1756968826710,9.72168349,4367.7,4367.6,1.46752379]
[1756968827302,9.72168349,4367.7,4367.6,1.00142379]
[1756968828105,9.72168349,4367.7,4367.6,0.53192379]
[1756968829192,9.72168349,4367.7,4367.6,1.00142379]
[1756968830501,9.23193453,4367.7,4367.6,0.53192379]
[1756968830748,9.72193241,4367.7,4367.6,0.53192379]
[1756968830913,9.72193241,4367.7,4367.6,1.00142379]
[1756968831289,3.1154,4367.7,4367.6,1.46752379]
[1756968831488,6.9424,4367.7,4367.6,1.46752379]
[1756968834107,6.9424,4367.7,4367.6,1.46751064]
[1756968834709,6.9424,4367.7,4367.6,0.53191064]
[1756968834910,9.23193453,4367.7,4367.6,0.53191064]
[1756968835212,9.51693453,4367.7,4367.6,0.21851064]
[1756968835384,9.23193453,4367.7,4367.6,0.21851064]
[1756968835589,9.51693453,4367.7,4367.6,0.21851064]
[1756968835900,9.23193453,4367.7,4367.6,0.21851064]
[1756968837952,6.9424,4367.7,4367.6,0.53191064]
[1756968838308,9.23193453,4367.7,4367.6,0.53191064]
[1756968839350,3.1154,4367.7,4367.6,1.46751064]
[1756968839914,3.1154,4367.7,4367.6,1.253]
[1756968840311,0.001,4367.7,4367.6,17.2835985]
[1756968840611,0.001,4367.7,4367.6,16.7367385]
[1756968840834,0.001,4367.7,4367.6,20.5627385]
[1756968841818,0.001,4367.7,4367.6,11.58018693]
[1756968842638,0.001,4367.7,4367.6,13.8480949]
[1756968849957,0.001,4367.7,4367.6,12.9124949]
[1756968850159,0.001,4367.7,4367.6,13.3800949]
[1756968850672,0.001,4367.7,4367.6,13.8551949]
[1756968851174,1.1736,4367.7,4367.6,8.04159998]
[1756968851480,0.2875,4367.7,4367.6,4.21559998]
[1756968852247,0.001,4367.7,4367.6,4.52119998]
[1756968852936,0.001,4367.7,4367.6,7.75348693]
[1756968854852,0.001,4367.7,4367.6,11.57848693]
[1756968855052,0.001,4367.7,4367.6,12.96570467]
[1756968856160,0.001,4367.7,4367.6,10.20101772]
[1756968856355,0.001,4367.7,4367.6,8.34619998]
[1756968856877,0.001,4367.7,4367.6,10.63578693]
[1756968857683,0.001,4367.7,4367.6,11.10338693]
[1756968858189,0.001,4367.7,4367.6,10.63578693]
[1756968859963,0.001,4367.7,4367.6,8.04059998]
[1756968860364,0.2875,4367.7,4367.6,8.04059998]
[1756968861690,0.2875,4367.7,4367.6,10.33018693]
[1756968863378,0.2875,4367.7,4367.6,8.04059998]
[1756968864268,0.001,4367.7,4367.6,10.33018693]
[1756968864472,0.001,4367.7,4367.6,11.10338693]
[1756968864672,0.001,4367.7,4367.6,12.91819308]
[1756968868884,0.001,4367.7,4367.6,11.97549308]
[1756968869095,0.001,4367.7,4367.6,10.63578693]
[1756968873581,0.3103,4367.7,4367.6,10.33018693]
[1756968873987,0.001,4367.7,4367.6,10.33018693]
[1756968874162,0.001,4367.7,4367.6,11.10918693]
[1756968874734,2.85199516,4371.3,4367.8,2.464]
[1756968874880,2.0371394,4371.5,4370.7,0.792]
[1756968875075,2.85199516,4372.4,4370.7,0.792]
[1756968875076,0.01979682,4372.4,4371.4,0.4293]
[1756968875302,0.4842,4372.5,4371.4,0.4293]
[1756968875303,0.1144,4372.5,4372.3,2.28709307]
[1756968875584,0.1144,4372.5,4372.4,4.17655811]
[1756968875778,0.1144,4372.5,4372.4,6.77853157]
[1756968876004,0.1144,4372.5,4372.4,8.27127473]
[1756968876208,0.458,4373.3,4372.5,2.28702115]
[1756968876482,0.1144,4372.7,4372.6,4.30473137]
[1756968876913,0.1144,4372.7,4372.6,6.90660022]
[1756968877105,0.37380969,4373.2,4372.7,2.28691655]
[1756968877307,0.37380969,4373.2,4372.8,4.30473137]
[1756968877618,0.37380969,4373.2,4372.9,0.34273137]
[1756968877789,0.4237,4373.0,4372.8,3.962]
[1756968877994,0.4237,4373.0,4372.9,0.34021064]
[1756968878204,0.1144,4373.0,4372.9,0.21263165]
[1756968878396,0.4237,4373.0,4372.9,0.21263165]
[1756968878791,0.8817,4373.0,4372.9,0.21263165]
[1756968878992,0.8817,4373.0,4372.9,3.15663165]
[1756968879204,1.3659,4373.0,4372.9,3.15663165]
[1756968879392,0.4237,4373.0,4372.9,3.15663165]
[1756968879591,0.8817,4373.0,4372.9,3.15663165]
[1756968882380,0.4237,4373.0,4372.9,3.15663165]
[1756968882915,0.4237,4373.0,4372.9,0.21263165]
[1756968882916,1.3659,4373.0,4372.9,0.21263165]
[1756968883115,6.65265966,4373.0,4372.9,0.21263165]
[1756968883921,4.3659,4373.0,4372.9,0.21263165]
[1756968885418,6.65265966,4373.0,4372.9,0.21263165]
[1756968886214,6.65365966,4373.0,4372.9,0.21263165]
[1756968886521,3.9089,4373.0,4372.9,0.21263165]
[1756968886731,3.4247,4373.0,4372.9,0.21263165]
[1756968886894,3.8827,4373.0,4372.9,0.21263165]
[1756968887088,6.16945966,4373.0,4372.9,0.21263165]
[1756968887925,3.8827,4373.0,4372.9,0.21263165]
[1756968888502,5.71145966,4373.0,4372.9,0.21263165]
[1756968888807,3.4247,4373.0,4372.9,0.21263165]
[1756968890936,5.71145966,4373.0,4372.9,0.21263165]
[1756968892195,0.1154,4373.0,4372.9,1.00893165]
[1756968892435,0.1154,4373.0,4372.9,7.6978436]
[1756968892734,0.001,4373.0,4372.9,7.82448212]
[1756968892931,0.001,4373.0,4372.9,5.53767017]
[1756968893131,0.001,4373.5,4372.9,5.53767017]
[1756968893300,0.001,4373.5,4373.0,0.33927017]
[1756968893501,0.001,4373.5,4373.1,0.21263165]
[1756968893794,0.001,4373.5,4373.2,0.21263165]
[1756968893996,0.001,4373.5,4373.3,0.21263165]
[1756968894194,0.001,4373.5,4373.4,0.21263165]
[1756968894597,0.3103,4373.5,4373.4,0.21263165]
[1756968894799,2.59679822,4373.5,4373.4,0.21263165]
[1756968895036,0.3103,4373.5,4373.4,0.21263165]
[1756968895340,0.001,4373.5,4373.4,0.52753165]
[1756968895704,0.3103,4373.5,4373.4,0.21131566]
[1756968896211,0.001,4373.5,4373.4,0.21131566]
[1756968896532,0.001,4373.5,4373.4,0.52621566]
[1756968896746,0.001,4373.5,4373.4,0.65306918]
[1756968896897,0.001,4373.5,4373.4,4.33154125]
[1756968897295,0.001,4373.9,4373.7,2.28638295]
[1756968897606,0.001,4373.9,4373.8,4.27516918]
[1756968898030,0.001,4373.9,4373.8,5.53556918]
[1756968898212,0.001,4373.9,4373.8,8.37546749]
[1756968898829,0.001,4373.9,4373.8,6.0891261]
[1756968899031,0.001,4373.9,4373.8,4.27416918]
[1756968899235,3.0,4374.5,4373.8,5.53356918]
[1756968899409,0.025,4374.8,4373.9,3.08855527]
[1756968899730,0.025,4374.8,4374.0,0.33816918]
[1756968899921,0.025,4374.8,4374.1,0.33816918]
[1756968900127,2.31082304,4374.8,4374.2,4.27216918]
[1756968900334,0.025,4374.8,4374.3,0.33816918]
[1756968900643,0.025,4374.8,4374.4,0.33816918]
[1756968900852,0.025,4374.8,4374.5,0.33816918]
[1756968900999,0.025,4374.8,4374.7,0.3135]
[1756968901206,0.025,4374.8,4374.7,0.65166918]
[1756968901415,0.025,4374.8,4374.7,4.58466918]
[1756968901617,0.025,4374.8,4374.7,7.79624021]
[1756968902505,0.025,4374.8,4374.7,5.51036918]
[1756968902708,0.025,4374.8,4374.7,3.67798092]
[1756968903033,0.025,4374.8,4374.7,7.60998092]
[1756968903232,0.025,4374.8,4374.7,1.09356918]
[1756968903432,0.025,4374.8,4374.7,4.58266918]
[1756968903640,0.025,4374.8,4374.7,7.79424021]
[1756968904211,0.001,4374.8,4374.7,7.79324021]
[1756968904442,0.001,4374.8,4374.7,5.50636918]
[1756968904736,0.001,4374.8,4374.7,7.68894436]
[1756968904940,0.001,4374.8,4374.7,0.65166918]
[1756968905143,0.001,4374.8,4374.7,4.58066918]
[1756968905726,0.3094,4374.8,4374.7,4.26616918]
[1756968905928,0.7471,4374.8,4374.7,4.26616918]
[1756968906914,6.50791878,4374.8,4374.7,4.26516918]
[1756968907236,6.50791878,4374.8,4374.7,0.33816918]
[1756968911140,6.07021878,4374.8,4374.7,0.33816918]
[1756968911322,6.50791878,4374.8,4374.7,0.33816918]
[1756968912261,6.07021878,4374.8,4374.7,0.33816918]
[1756968912442,5.70961878,4374.8,4374.7,0.33816918]
[1756968913454,3.4238,4374.8,4374.7,0.12685352]
[1756968914058,5.70961878,4374.8,4374.7,0.12685352]
[1756968914266,6.62231878,4374.8,4374.7,0.12685352]
[1756968914759,6.14731878,4374.8,4374.7,0.12685352]
[1756968915059,3.4238,4374.8,4374.7,0.12685352]
[1756968915880,5.70961878,4374.8,4374.7,0.12685352]
[1756968916562,6.14731878,4374.8,4374.7,0.12685352]
[1756968917053,6.62231878,4374.8,4374.7,0.12685352]
[1756968918660,5.70961878,4374.8,4374.7,0.12685352]
[1756968918862,3.1154,4374.8,4374.7,0.12685352]
[1756968919362,5.40121878,4374.8,4374.7,0.12685352]
[1756968919561,6.62231878,4374.8,4374.7,0.12685352]
[1756968921778,10.53631878,4374.8,4374.7,0.12685352]
[1756968922579,2.28602779,4374.4,4374.3,4.21159998]
[1756968922876,7.41912779,4374.4,4374.3,4.33990833]
[1756968923080,7.53352779,4374.4,4374.3,4.33990833]
[1756968923399,7.53352779,4374.4,4374.3,4.21159998]
[1756968923544,16.48837737,4374.4,4374.3,4.21159998]
[1756968924066,5.28608005,4374.3,4374.2,0.004]
[1756968925175,6.03218005,4374.3,4374.2,0.004]
[1756968925963,6.50718005,4374.3,4374.2,0.004]
[1756968926953,6.03218005,4374.3,4374.2,0.004]
[1756968927966,5.28608005,4374.3,4374.2,0.004]
[1756968928454,5.28202149,4374.3,4374.2,0.004]
[1756968929563,0.001,4374.8,4374.2,1.2432]
[1756968929763,0.001,4374.8,4374.3,0.9257]
[1756968929964,0.001,4374.8,4374.5,2.2859594]
[1756968930275,0.001,4374.8,4374.7,0.3024]
[1756968930585,0.001,4374.8,4374.7,4.2124]
[1756968930797,0.001,4374.8,4374.7,5.1298]
[1756968933076,0.001,4374.8,4374.7,5.1278]
[1756968933303,0.001,4374.8,4374.7,5.1268]
[1756968933900,0.001,4374.8,4374.7,5.1258]
[1756968935486,0.001,4374.8,4374.7,2.02258055]
[1756968935687,0.001,4374.8,4374.7,7.41167103]
[1756968936802,0.001,4374.8,4374.7,9.78570471]
[1756968937103,0.001,4374.8,4374.7,9.16967103]
[1756968938191,0.001,4374.8,4374.7,5.26367103]
[1756968938407,0.001,4374.8,4374.7,9.7834478]
[1756968938694,0.001,4374.8,4374.7,8.78688343]
[1756968938896,0.001,4374.8,4374.7,8.17110666]
[1756968939084,0.001,4374.8,4374.7,10.45697769]
[1756968941196,0.001,4374.8,4374.7,11.28062535]
[1756968941495,0.001,4374.8,4374.7,10.45697769]
[1756968942071,0.001,4374.8,4374.7,11.69244919]
[1756968943000,0.001,4374.8,4374.7,15.90404917]
[1756968943296,0.001,4374.8,4374.7,14.66857767]
[1756968943466,0.001,4374.8,4374.7,15.46057767]
[1756968944105,0.001,4374.8,4374.7,16.69604917]
[1756968944303,0.001,4374.8,4374.7,19.69604917]
[1756968944669,0.001,4374.8,4374.7,23.95489875]
[1756968944875,0.001,4374.8,4374.7,27.85889875]
[1756968945375,0.001,4374.8,4374.7,26.62342725]
[1756968946204,0.001,4374.8,4374.7,22.71942725]
[1756968946409,0.001,4374.8,4374.7,26.62642725]
[1756968946707,0.001,4374.8,4374.7,14.67057767]
[1756968947366,0.001,4374.8,4374.7,14.88385687]
[1756968948605,0.001,4374.8,4374.7,23.95310645]
[1756968949202,0.001,4374.8,4374.7,14.99725687]
[1756968952007,0.001,4374.8,4374.7,14.99625687]
[1756968952511,0.001,4374.8,4374.7,23.94910645]
[1756968953699,0.001,4374.8,4374.7,24.76817255]
[1756968955520,0.001,4374.8,4374.7,24.76517255]
[1756968956313,0.001,4374.8,4374.7,23.94610645]
[1756968956820,0.001,4374.8,4374.7,24.73810645]
[1756968957007,0.001,4374.8,4374.7,29.20297795]
[1756968957407,0.001,4374.8,4374.7,27.96750645]
[1756968958588,0.001,4374.8,4374.7,23.75590647]
[1756968959888,0.001,4374.8,4374.7,23.84804859]
[1756968960300,0.001,4374.8,4374.7,23.84404859]
[1756968960587,0.001,4374.8,4374.7,9.28479901]
[1756968960788,0.001,4374.8,4374.7,13.17979901]
[1756968961296,0.3031,4374.8,4374.7,8.75299901]
[1756968961506,0.3031,4374.8,4374.7,12.64799901]
[1756968961709,0.001,4374.8,4374.7,12.94969901]
[1756968961893,0.001,4374.8,4374.7,13.89019901]
[1756968962094,0.001,4374.8,4374.7,13.89024138]
[1756968963495,0.001,4374.8,4374.7,22.40759096]
[1756968964208,0.001,4374.8,4374.7,22.85109096]
[1756968965593,0.001,4374.8,4374.7,23.64309096]
[1756968965799,0.001,4374.8,4374.7,23.87249096]
[1756968968127,0.001,4374.8,4374.7,10.07614138]
[1756968968329,0.001,4374.8,4374.7,13.67444138]
[1756968968697,0.001,4374.8,4374.7,13.97614138]
[1756968970327,0.001,4374.8,4374.7,15.62343671]
[1756968970527,0.001,4374.8,4374.7,11.72343671]
[1756968970830,0.001,4374.8,4374.7,15.62043671]
[1756968971336,0.001,4374.8,4374.7,16.56093671]
[1756968971556,0.001,4374.8,4374.7,25.51578629]
[1756968971705,0.001,4374.8,4374.7,14.91364138]
[1756968972035,0.001,4374.8,4374.7,17.81364138]
[1756968972528,0.001,4374.8,4374.7,17.81406101]
[1756968975729,0.001,4374.8,4374.7,17.81206101]
[1756968976801,0.001,4374.8,4374.7,12.97656101]
[1756968977003,0.001,4374.8,4374.7,16.86856101]
[1756968977232,0.001,4375.3,4375.2,2.5150098]
[1756968977407,0.001,4375.3,4375.2,10.83090071]
[1756968977614,0.7983,4375.3,4375.2,10.83090071]
[1756968977814,1.2623,4375.3,4375.2,11.32610071]
[1756968978016,1.2623,4375.3,4375.2,7.60977752]
[1756968978234,1.2623,4375.3,4375.2,13.38680859]
[1756968978439,1.2623,4375.3,4375.2,6.15300332]
[1756968978735,10.21714958,4375.3,4374.8,3.895]
[1756968979046,3.24481225,4375.2,4374.9,3.896]
[1756968979229,2.58781428,4375.0,4374.9,3.896]
[1756968979433,3.54701428,4375.0,4374.8,3.896]
[1756968979633,0.9592,4374.9,4374.8,3.896]
[1756968980050,1.2613,4374.9,4374.8,3.896]
[1756968980444,1.2613,4374.9,4374.4,1.757]
[1756968980445,3.54707493,4374.9,4374.4,1.757]
[1756968980763,0.96478496,4374.8,4374.3,0.004]
[1756968980922,3.0,4374.7,4374.3,0.004]
[1756968981244,0.3021,4374.4,4374.3,0.004]
[1756968981653,0.7661,4374.4,4374.3,0.004]
[1756968981830,1.2613,4374.4,4374.3,0.004]
[1756968983930,1.2613,4374.4,4374.3,3.906]
[1756968987652,1.3757,4374.4,4374.3,3.906]
[1756968987854,3.66172779,4374.4,4374.3,0.004]
[1756968988584,6.66172779,4374.4,4374.3,0.004]
[1756968990473,3.66172779,4374.4,4374.3,0.004]
[1756968993043,3.66731275,4374.4,4374.3,0.004]
[1756968993571,3.66172779,4374.4,4374.3,0.004]
[1756968995038,9.21731275,4374.4,4374.3,0.004]
[1756968995243,9.21172779,4374.4,4374.3,0.004]
[1756968995657,9.21172779,4374.4,4374.2,0.004]
[1756968995658,6.07808005,4374.3,4374.2,0.004]
[1756968995863,9.97508005,4374.3,4374.2,0.004]
[1756968996064,11.21308005,4374.3,4374.2,0.004]
[1756969000459,11.30474947,4374.3,4374.2,0.004]
[1756969007453,20.20825221,4374.3,4374.2,0.004]
[1756969007687,16.31125221,4374.3,4374.2,0.004]
[1756969007870,20.19825221,4374.3,4374.2,0.004]
[1756969008078,20.31265221,4374.3,4374.2,0.004]
[1756969008283,21.10050589,4374.3,4374.2,0.004]
[1756969009956,22.02210589,4374.3,4374.2,0.004]
[1756969011594,22.81410589,4374.3,4374.2,0.004]
[1756969013192,22.81410589,4374.3,4373.8,0.029]
[1756969013193,2.28628912,4373.9,4373.8,0.029]
[1756969013357,20.6952305,4373.9,4373.8,0.029]
[1756969013563,21.92764554,4373.9,4373.8,0.029]
[1756969016057,22.04031864,4373.9,4373.8,0.029]
[1756969016694,21.45344554,4373.9,4373.8,0.029]
[1756969020293,21.92984554,4373.9,4373.8,0.029]
[1756969021016,10.5082428,4373.9,4373.8,0.029]
[1756969021172,21.00604554,4373.9,4373.8,0.029]
[1756969022290,21.00604554,4373.9,4373.8,0.24340127]
[1756969022596,21.44174554,4373.9,4373.8,0.24340127]
[1756969022804,22.72184554,4373.9,4373.8,0.029]
[1756969024995,22.72184554,4373.9,4373.8,0.24356254]
[1756969025216,21.79804554,4373.9,4373.8,0.24356254]
[1756969026106,21.79804554,4373.9,4373.8,0.029]
[1756969027212,20.68964554,4373.9,4373.8,0.3332]
[1756969027818,21.00064554,4373.9,4373.8,0.029]
[1756969031300,20.68964554,4373.9,4373.8,0.3332]
[1756969032615,20.68964554,4373.9,4373.8,0.029]
[1756969033530,20.68964554,4373.9,4373.8,0.3332]
[1756969036017,21.00064554,4373.9,4373.8,0.029]
[1756969036223,21.43634554,4373.9,4373.8,0.029]
[1756969036931,21.92444554,4373.9,4373.8,0.029]
[1756969040530,24.47444554,4373.9,4373.8,0.029]
[1756969041930,24.47444554,4373.9,4373.8,0.3332]
[1756969041931,22.44764554,4373.9,4373.8,0.3332]
[1756969042136,22.44764554,4373.9,4373.8,0.7774]
[1756969042337,22.44764554,4373.9,4373.8,1.2304]
[1756969042944,22.44764554,4373.9,4373.8,0.7774]
[1756969043108,22.44764554,4373.9,4373.8,0.3332]
[1756969045016,22.44764554,4373.9,4373.8,0.029]
[1756969045017,22.75864554,4373.9,4373.8,0.029]
[1756969045223,23.19434554,4373.9,4373.8,0.029]
[1756969045417,21.22005647,4373.9,4373.8,0.029]
[1756969045851,31.02367014,4373.9,4373.8,0.029]
[1756969046014,31.02367014,4373.9,4372.3,0.004]
[1756969046015,6.0783427,4373.8,4372.3,0.457]
[1756969046214,15.03802562,4372.9,4372.4,0.4442]
[1756969046410,21.4434793,4372.9,4372.4,0.4442]
[1756969047348,21.9315793,4372.9,4372.3,0.004]
[1756969047555,23.2055008,4372.4,4372.3,0.004]
[1756969047719,27.54095448,4372.4,4372.3,0.004]
[1756969048145,27.85195448,4372.4,4372.3,0.004]
[1756969049042,18.89274081,4372.4,4372.3,0.004]
[1756969049259,27.85195448,4372.4,4372.3,0.004]
[1756969050255,18.89274081,4372.4,4372.3,0.004]
[1756969053729,19.37134081,4372.4,4372.3,0.004]
[1756969053952,19.80844081,4372.4,4372.3,0.004]
[1756969054649,2.2872827,4372.0,4371.8,0.029]
[1756969054816,21.14611753,4372.0,4371.8,0.029]
[1756969055018,21.44353257,4372.0,4371.8,0.029]
[1756969055455,21.88063257,4372.0,4371.8,0.029]
[1756969055819,20.35253257,4372.0,4371.9,1.2089]
[1756969056085,20.46693257,4372.0,4371.9,1.2089]
[1756969056264,20.46693257,4372.0,4371.9,0.7516]
[1756969056428,20.46693257,4372.0,4371.9,0.2908]
[1756969057021,20.46693257,4372.0,4371.9,0.004]
[1756969057252,20.46693257,4372.0,4371.9,0.2908]
[1756969057418,19.98389637,4372.0,4371.9,0.7516]
[1756969058222,11.0246827,4372.0,4371.9,0.7516]
[1756969058562,11.0246827,4372.0,4371.9,0.2908]
[1756969058755,11.0246827,4372.0,4371.9,0.7516]
[1756969060352,11.0246827,4372.0,4371.9,0.2908]
[1756969062256,11.0226827,4372.0,4371.9,1.2089]
[1756969066552,8.7314,4372.0,4371.9,1.2089]
[1756969066882,0.1144,4372.0,4371.9,7.829625]
[1756969067042,0.1144,4372.2,4372.0,2.2872827]
[1756969067243,3.86,4372.8,4372.1,3.49213039]
[1756969067562,0.1144,4372.4,4372.3,2.28712576]
[1756969067871,0.1144,4372.4,4372.3,4.06995138]
[1756969068277,0.1144,4372.9,4372.3,4.18435138]
[1756969068464,0.1144,4372.9,4372.4,3.20517346]
[1756969068776,0.1144,4372.9,4372.7,2.28691169]
[1756969068955,0.1144,4372.9,4372.8,2.57366425]
[1756969069155,0.1144,4372.9,4372.8,0.2868]